bitfinex/quotes_ETHUSD_20220112
["timestamp","ask_amount","ask_price","bid_price","bid_amount"]
[1642031113345,5.57407359,3376.9,3376.8,3.25781022]
[1642031113543,5.57407359,3376.9,3376.8,5.55262821]
[1642031114347,4.13779135,3376.9,3376.8,5.55262821]
[1642031114550,4.13779135,3376.9,3376.8,3.25781022]
[1642031115000,4.12320566,3376.9,3376.8,3.25781022]
[1642031116201,4.4517,3377.8,3376.9,3.55]
[1642031116401,5.97251301,3377.8,3377.1,1.4804]
[1642031116602,0.00625266,3377.7,3377.2,0.426]
[1642031116800,0.00625266,3377.7,3377.5,0.02555003]
[1642031117001,0.00568424,3377.6,3377.5,0.47710006]
[1642031118202,1.55925521,3377.6,3377.5,0.05110006]
[1642031118432,6.30925521,3377.6,3377.5,0.05110006]
[1642031118732,23.70925521,3377.6,3377.5,0.00010006]
[1642031119333,25.00925521,3377.6,3377.5,0.00010006]
[1642031120331,25.01704987,3377.6,3377.5,0.00010006]
[1642031120533,27.04421262,3377.6,3377.5,0.00629506]
[1642031121139,21.50225803,3377.6,3377.5,0.00629506]
[1642031121838,21.50225803,3377.6,3377.5,0.006195]
[1642031122038,23.77949237,3377.6,3377.5,0.006195]
[1642031123279,21.50225803,3377.6,3377.5,0.006195]
[1642031125381,4.10225803,3377.6,3377.5,0.006195]
[1642031125586,2.66708706,3377.6,3376.5,0.426]
[1642031125781,2.66708706,3377.6,3376.6,0.1184]
[1642031125782,1.33945169,3376.8,3376.6,0.1184]
[1642031126240,1.33945169,3376.8,3376.7,0.74033]
[1642031126439,1.33945169,3376.8,3376.7,1.76633]
[1642031126640,1.34058854,3376.8,3376.7,1.76633]
[1642031126842,1.34058854,3376.8,3376.7,1.97162566]
[1642031130304,1.3483832,3376.8,3376.7,1.97162566]
[1642031130498,1.3483832,3376.8,3376.7,1.97817493]
[1642031130900,0.00893151,3376.8,3376.7,1.97817493]
[1642031131101,0.00893151,3376.8,3376.7,8.08131747]
[1642031131501,1.56159834,3376.8,3376.7,9.08131747]
[1642031132302,0.00893151,3376.8,3376.7,9.08131747]
[1642031133304,0.00893151,3376.8,3376.7,11.75603814]
[1642031134535,0.00893151,3376.8,3376.7,11.7244956]
[1642031138087,3.00893151,3376.8,3376.7,11.7244956]
[1642031139388,3.00893151,3376.8,3376.7,10.9818956]
[1642031139789,3.00893151,3376.8,3376.7,1.37817493]
[1642031141544,4.56098466,3376.8,3376.7,1.37817493]
[1642031149139,4.56098466,3376.8,3376.4,0.7404]
[1642031149140,4.6,3376.6,3376.2,0.426]
[1642031149341,4.6,3376.6,3375.9,3.48988347]
[1642031149342,0.012094,3376.3,3375.9,2.20814298]
[1642031149540,0.012094,3376.3,3375.8,1.44544441]
[1642031149739,1.49760516,3376.1,3375.8,1.44544441]
[1642031149940,6.0184,3376.0,3375.9,0.00397896]
[1642031150140,2.4,3375.9,3375.8,0.56682337]
[1642031150341,2.5184,3375.9,3375.8,0.56682337]
[1642031150541,0.3,3375.7,3375.5,1.62852773]
[1642031150742,0.01279826,3375.6,3375.5,0.96382773]
[1642031150949,2.93119826,3375.6,3375.5,0.91502773]
[1642031151142,22.1,3375.5,3374.8,3.66025005]
[1642031151345,22.1,3375.5,3374.3,4.8803334]
[1642031151346,5.62079662,3374.9,3374.3,4.8803334]
[1642031151545,0.1184,3374.8,3374.3,4.8803334]
[1642031151743,0.1184,3374.8,3374.3,2.94112976]
[1642031152217,0.4184,3374.8,3374.3,2.94112976]
[1642031153016,0.7409896,3374.6,3374.3,2.94112976]
[1642031153215,0.3,3374.5,3374.3,2.94112976]
[1642031153416,0.1184,3374.8,3374.4,0.1184]
[1642031153619,0.1184,3374.8,3374.2,0.1184]
[1642031154416,0.1184,3374.8,3374.2,2.30027449]
[1642031154616,0.1184,3374.8,3374.2,3.30027449]
[1642031155017,0.1184,3374.8,3374.3,0.426]
[1642031155218,0.1184,3374.8,3374.4,2.39082599]
[1642031155417,0.1184,3374.8,3374.6,0.74064]
[1642031155418,0.00321356,3374.8,3374.6,0.74064]
[1642031155617,0.00321356,3374.8,3374.7,2.98660141]
[1642031155818,0.00321356,3374.8,3374.7,0.43282108]
[1642031156055,0.00321356,3374.8,3374.7,1.43282108]
[1642031156456,0.00321356,3374.8,3374.7,2.69989757]
[1642031158557,0.00321356,3374.8,3374.7,1.43282108]
[1642031158762,3.00321356,3374.8,3374.7,1.43282108]
[1642031158958,3.00321356,3374.8,3374.7,0.43282108]
[1642031159160,3.00321356,3374.8,3374.7,1.43282108]
[1642031159356,3.00321356,3374.8,3374.7,0.43282108]
[1642031159558,3.00321356,3374.8,3374.7,1.43282108]
[1642031160199,3.01100822,3374.8,3374.7,0.43282108]
[1642031161905,0.8591208,3375.7,3374.8,7.25]
[1642031162107,1.51178368,3376.5,3375.2,5.329]
[1642031162304,9.22108771,3376.7,3375.2,5.329]
[1642031162305,4.81135478,3376.4,3375.3,3.18001212]
[1642031162503,0.00113684,3376.1,3375.3,1.4671561]
[1642031162704,0.00113684,3376.1,3375.4,0.00284212]
[1642031162904,0.00113684,3376.1,3375.5,0.5444]
[1642031162905,1.33399591,3376.0,3375.5,0.5444]
[1642031163303,1.33399591,3376.0,3375.6,0.00170527]
[1642031163544,1.33399591,3376.0,3375.7,0.426]
[1642031165545,1.33399591,3376.0,3375.8,0.00604748]
[1642031165747,1.33399591,3376.0,3375.8,0.43204748]
[1642031167496,1.33399591,3376.0,3375.8,0.00604748]
[1642031167695,1.63399591,3376.0,3375.6,0.00170527]
[1642031167895,2.05239591,3376.0,3375.6,0.00170527]
[1642031168093,2.05239591,3376.0,3375.5,0.0022737]
[1642031168697,2.05239591,3376.0,3375.1,0.00454739]
[1642031169098,5.05239591,3376.0,3375.1,0.00454739]
[1642031169899,2.54041039,3375.9,3375.1,0.00454739]
[1642031170499,2.54294165,3375.9,3375.1,0.00454739]
[1642031171551,3.28364815,3375.9,3375.1,0.00454739]
[1642031172156,0.3,3375.8,3375.1,0.00454739]
[1642031173556,0.4184,3375.8,3375.1,0.00454739]
[1642031173757,0.7184,3375.8,3375.1,0.00454739]
[1642031174357,0.73057174,3375.8,3375.1,0.00454739]
[1642031174559,0.73057174,3375.8,3375.0,0.00511581]
[1642031174794,0.73057174,3375.8,3374.9,0.00568424]
[1642031175395,0.7407884,3375.6,3374.9,0.00568424]
[1642031175598,0.7184,3375.5,3374.9,0.00568424]
[1642031175997,0.7184,3375.5,3375.0,0.426]
[1642031175998,0.1184,3375.5,3375.0,0.426]
[1642031176197,0.1184,3375.5,3375.1,0.426]
[1642031176398,0.1184,3375.5,3375.2,0.1184]
[1642031176599,0.1184,3375.5,3375.2,0.12237897]
[1642031176799,0.1184,3375.5,3375.3,0.00341054]
[1642031178859,0.00253318,3375.8,3375.3,0.00341054]
[1642031179263,0.7407401,3375.7,3375.2,0.00397897]
[1642031179659,0.1184,3375.6,3375.2,0.00397897]
[1642031179863,0.1184,3375.6,3374.9,0.1184]
[1642031179864,0.1184,3375.6,3375.0,0.00511581]
[1642031180058,0.4184,3375.7,3375.0,0.00511581]
[1642031180764,1.1591343,3375.7,3375.0,0.00511581]
[1642031180965,2.54055276,3375.5,3375.0,0.00511581]
[1642031181165,3.14055276,3375.5,3375.0,0.00511581]
[1642031181766,0.6,3375.5,3375.0,0.00511581]
[1642031182194,0.7184,3375.7,3375.0,0.00511581]
[1642031182398,0.4184,3375.7,3375.0,0.00511581]
[1642031182598,0.4184,3375.7,3374.9,0.00568424]
[1642031182799,0.3,3375.7,3375.0,0.5444]
[1642031183098,0.3,3375.7,3375.1,0.00454739]
[1642031183700,2.54059206,3375.6,3375.1,0.00454739]
[1642031183900,2.54059206,3375.6,3375.1,0.12294739]
[1642031184101,3.14059206,3375.6,3375.1,0.12294739]
[1642031184300,3.14059206,3375.6,3375.0,0.426]
[1642031184301,3.14059206,3375.6,3375.2,0.00397897]
[1642031184704,3.14059206,3375.6,3375.1,0.00454739]
[1642031185101,2.84059206,3375.6,3375.1,0.00454739]
[1642031185500,0.00257349,3375.5,3375.1,0.00454739]
[1642031185701,2.54316555,3375.5,3375.1,0.00454739]
[1642031186146,2.84316555,3375.5,3375.1,0.00454739]
[1642031187451,2.54059206,3375.4,3375.1,0.00454739]
[1642031187647,2.84059206,3375.4,3375.1,0.00454739]
[1642031187949,3.14059206,3375.4,3375.1,0.00454739]
[1642031189350,0.6,3375.4,3375.1,0.00454739]
[1642031189551,0.3,3375.4,3375.1,0.00454739]
[1642031189792,0.1184,3375.4,3375.1,0.00454739]
[1642031190393,2.54072319,3375.3,3375.1,0.00454739]
[1642031190592,0.3,3375.2,3375.1,0.00454739]
[1642031191200,0.3,3375.2,3374.7,0.00682108]
[1642031192002,2.54072319,3375.1,3374.7,0.00682108]
[1642031192203,1.47154447,3374.9,3374.7,0.00682108]
[1642031192606,1.47154447,3374.9,3374.6,0.00738951]
[1642031194444,2.54083275,3374.8,3374.6,0.00738951]
[1642031195250,4.02563275,3374.8,3374.6,0.00738951]
[1642031195546,4.76662635,3374.8,3374.6,0.00738951]
[1642031196451,6.6184,3374.7,3374.6,0.00738951]
[1642031196650,1.1184,3374.7,3374.6,0.00738951]
[1642031196852,1.1184,3374.7,3374.1,0.01023162]
[1642031197196,0.3,3374.4,3374.1,0.01023162]
[1642031197396,2.98720528,3374.3,3374.1,0.01023162]
[1642031197902,3.28720528,3374.3,3374.1,0.01023162]
[1642031198100,2.80384313,3374.2,3374.1,0.01023162]
[1642031198298,3.10384313,3374.2,3373.6,0.01307374]
[1642031199198,5.64467588,3374.2,3373.6,0.01307374]
[1642031200002,2.54083275,3374.1,3373.6,0.01307374]
[1642031200601,1.20457472,3373.8,3373.6,0.01307374]
[1642031200961,2.54083275,3374.1,3373.6,0.01307374]
[1642031201351,2.54083275,3374.1,3373.5,0.13204217]
[1642031201551,2.54083275,3374.1,3373.6,0.01307374]
[1642031201953,0.30253434,3374.2,3373.6,0.01307374]
[1642031202152,1.25208954,3374.0,3373.6,0.01307374]
[1642031203853,1.55208954,3374.0,3373.6,0.01307374]
[1642031204452,0.3,3374.0,3373.6,0.01307374]
[1642031204895,0.00253434,3374.2,3373.6,0.75401374]
[1642031205495,0.00253388,3374.0,3373.6,0.75401374]
[1642031205896,0.00253388,3374.0,3373.6,0.01307374]
[1642031209647,0.00253388,3374.0,3373.7,0.426]
[1642031209951,0.00253388,3374.0,3373.8,0.0119369]
[1642031210148,0.00253388,3374.0,3373.9,0.426]
[1642031210449,0.00253388,3374.0,3373.9,0.43736847]
[1642031215105,0.00253388,3374.0,3373.9,0.55576847]
[1642031217154,0.00253388,3374.0,3373.9,0.43736847]
[1642031225380,0.00253388,3374.0,3373.9,1.88665356]
[1642031225781,0.00253388,3374.0,3373.9,10.90677834]
[1642031225991,0.1184,3374.8,3373.9,10.90677834]
[1642031226192,0.1184,3374.8,3374.3,6.06967]
[1642031226490,0.1184,3374.8,3374.4,0.426]
[1642031226689,0.1184,3374.8,3374.5,0.1184]
[1642031226889,0.1184,3374.8,3374.6,0.426]
[1642031227089,1.50579972,3374.9,3374.6,0.43338951]
[1642031227306,1.50579972,3374.9,3374.7,0.00682108]
[1642031227505,1.50579972,3374.9,3374.8,0.426]
[1642031227706,1.62419972,3374.9,3374.8,0.426]
[1642031227905,4.81540765,3374.9,3374.8,0.43225266]
[1642031228105,2.22419972,3374.9,3374.8,0.00625266]
[1642031228307,1.92419972,3374.9,3374.8,0.00625266]
[1642031228507,1.92419972,3374.9,3374.2,0.0096632]
[1642031228705,0.1184,3374.8,3374.2,0.0096632]
[1642031228906,4.34675389,3374.9,3374.2,0.0096632]
[1642031229507,4.04675389,3374.9,3374.3,0.426]
[1642031229709,2.54095417,3374.8,3374.4,0.1184]
[1642031229909,2.54095417,3374.8,3374.5,0.426]
[1642031230208,5.54095417,3374.8,3374.6,0.00738951]
[1642031230408,5.54095417,3374.8,3374.6,0.43338951]
[1642031230611,5.84095417,3374.8,3374.6,0.43338951]
[1642031230809,5.84095417,3374.8,3374.7,0.00682108]
[1642031231453,4.20753758,3374.8,3374.7,0.00682108]
[1642031233656,3.90753758,3374.8,3374.7,0.00682108]
[1642031234261,3.90753758,3374.8,3374.7,0.43282108]
[1642031234700,3.90753758,3374.8,3374.7,2.06987671]
[1642031234899,3.90753758,3374.8,3374.7,0.43282108]
[1642031235100,3.90753758,3374.8,3374.7,5.33282108]
[1642031235300,3.90753758,3374.8,3374.7,4.33282108]
[1642031235501,3.90753758,3374.8,3374.7,5.33282108]
[1642031236101,3.0,3374.8,3374.7,5.33282108]
[1642031236303,3.0,3374.8,3374.7,1.43282108]
[1642031236503,3.0,3374.8,3374.7,0.43282108]
[1642031238983,3.0,3374.8,3374.7,0.18282108]
[1642031241881,0.58068466,3374.8,3374.7,0.18282108]
[1642031243917,0.58068466,3374.8,3374.7,2.73282108]
[1642031244118,0.58068466,3374.8,3374.7,0.18282108]
[1642031245320,0.58068466,3374.8,3374.7,0.92346108]
[1642031257499,0.1184,3375.8,3375.4,0.74047]
[1642031257805,0.1184,3375.8,3375.6,0.01101551]
[1642031258003,0.00568423,3375.7,3375.6,0.1184]
[1642031258207,0.00568423,3375.7,3375.6,2.88267162]
[1642031258407,0.00568423,3375.7,3375.6,10.40216212]
[1642031258604,0.00568423,3375.7,3375.6,11.14259212]
[1642031259206,2.54587279,3375.7,3375.6,7.49543]
[1642031260007,2.54587279,3375.7,3375.6,6.49543]
[1642031260206,3.80447723,3375.7,3375.6,0.426]
[1642031260409,3.80447723,3375.7,3375.6,0.4318802]
[1642031261266,3.80447723,3375.7,3375.6,0.4260802]
[1642031261465,3.92287723,3375.7,3375.6,0.4260802]
[1642031262865,6.92287723,3375.7,3375.6,0.4260802]
[1642031263265,6.80447723,3375.7,3375.6,0.4260802]
[1642031265404,6.80736313,3375.7,3375.6,0.426]
[1642031269078,6.80736313,3375.7,3375.1,0.85901]
[1642031269480,0.00511581,3375.6,3375.1,0.85901]
[1642031269679,0.00511581,3375.6,3375.2,0.74059]
[1642031269878,0.00454738,3375.5,3375.2,0.74059]
[1642031270279,0.00397896,3375.4,3375.1,0.85901]
[1642031270683,0.00341054,3375.3,3375.1,0.85901]
[1642031271084,0.00284211,3375.2,3375.1,0.85901]
[1642031272924,0.00284211,3375.2,3375.1,1.59957]
[1642031273122,0.00284211,3375.2,3375.1,3.9529144]
[1642031274627,0.00284211,3375.2,3375.1,4.9529144]
[1642031275325,0.00284211,3375.2,3375.1,5.3789144]
[1642031276159,0.00284211,3375.2,3375.1,5.6789144]
[1642031276356,0.00284211,3375.2,3375.1,5.74482296]
[1642031276554,0.00284211,3375.2,3375.1,8.44482296]
[1642031279907,0.00284211,3375.2,3375.1,13.77382296]
[1642031280512,0.00284211,3375.2,3375.1,11.07382296]
[1642031282016,0.00284211,3375.2,3375.1,11.0079144]
[1642031283214,0.00284211,3375.2,3375.1,10.8895144]
[1642031283456,0.00284211,3375.2,3375.1,14.0395144]
[1642031283657,2.54020843,3375.6,3375.3,0.5182503]
[1642031283860,2.54020843,3375.6,3375.5,5.329]
[1642031284057,2.54020843,3375.6,3375.5,8.69329638]
[1642031284258,2.54020843,3375.6,3375.5,9.69329638]
[1642031284456,3.0,3375.7,3375.5,9.69329638]
[1642031284658,3.0,3375.7,3375.6,3.90760879]
[1642031284858,3.0,3375.7,3375.6,4.33360879]
[1642031285063,3.00284212,3375.7,3375.6,5.45795756]
[1642031288920,3.00284212,3375.7,3375.6,3.06863007]
[1642031289722,2.8481703,3375.7,3375.6,3.06863007]
[1642031290520,2.8481703,3375.7,3375.6,3.07418804]
[1642031292161,2.53865208,3375.7,3375.6,3.07418804]
[1642031293762,2.53865208,3375.7,3375.6,5.39864065]
[1642031294566,0.00284212,3375.7,3375.6,5.39864065]
[1642031294806,0.00284212,3375.7,3375.6,5.36299105]
[1642031295006,0.00284212,3375.7,3375.6,3.07418804]
[1642031295406,0.00284212,3375.7,3375.6,5.3782632]
[1642031296411,0.00284212,3375.7,3375.6,5.41225787]
[1642031297212,0.00284212,3375.7,3375.6,5.3782632]
[1642031298866,1.3681,3376.7,3375.7,2.75]
[1642031299067,1.3681,3376.7,3376.4,0.74033]
[1642031299365,0.00454739,3376.5,3376.4,1.16633]
[1642031299569,0.00454739,3376.5,3376.4,1.46633]
[1642031299968,0.00454739,3376.5,3376.4,2.84728459]
[1642031300168,0.00454739,3376.5,3376.4,3.98135946]
[1642031300372,0.00454739,3376.5,3376.4,4.72168946]
[1642031301173,0.00454739,3376.5,3376.4,6.98969374]
[1642031302407,2.54446343,3376.5,3376.4,6.98969374]
[1642031302812,2.54446343,3376.5,3376.4,4.72168946]
[1642031304213,0.00454739,3376.5,3376.4,4.72168946]
[1642031305411,0.00454739,3376.5,3376.4,4.72793778]
[1642031307069,0.00454739,3376.5,3376.4,4.69073778]
[1642031307873,0.00454739,3376.5,3376.4,2.55085319]
[1642031308070,0.00454739,3376.5,3376.4,1.81052319]
[1642031310711,0.00454739,3376.5,3376.4,1.56632319]
[1642031312417,0.00454739,3376.5,3376.4,1.86632319]
[1642031317618,0.00454739,3376.5,3376.4,1.98472319]
[1642031318320,0.00454739,3376.5,3376.4,1.68472319]
[1642031318721,0.00454739,3376.5,3376.4,1.56632319]
[1642031322065,0.00454739,3376.5,3376.4,0.43224832]
[1642031324067,0.00454739,3376.5,3376.4,1.89419452]
[1642031326314,2.54435014,3376.5,3376.4,1.89419452]
[1642031327317,2.54435014,3376.5,3376.4,2.19419452]
[1642031327917,2.54435014,3376.5,3376.4,4.49592343]
[1642031328120,2.54435014,3376.5,3376.4,2.19419452]
[1642031328759,2.54435014,3376.5,3376.4,2.31259452]
[1642031329758,2.53980275,3376.5,3376.4,2.31259452]
[1642031330761,1.52043623,3377.1,3376.4,2.01259452]
[1642031330762,1.52043623,3376.9,3376.4,2.01259452]
[1642031330961,1.52043623,3376.9,3376.6,0.5182381]
[1642031331166,0.3,3376.8,3376.7,0.426]
[1642031331566,1.52043623,3376.9,3376.7,0.426]
[1642031333715,1.52043623,3376.9,3376.7,1.16627]
[1642031334115,1.52043623,3376.9,3376.7,0.426]
[1642031334614,0.3,3376.8,3376.7,0.426]
[1642031336071,3.34790805,3376.8,3376.7,0.426]
[1642031336868,0.8081053,3376.8,3376.7,0.426]
[1642031337470,2.83980275,3376.8,3376.7,0.426]
[1642031338072,4.36023898,3376.8,3376.7,0.426]
[1642031338970,2.83980275,3376.8,3376.7,0.426]
[1642031339813,2.53980275,3376.8,3376.7,0.426]
[1642031340419,2.53980275,3376.8,3376.7,0.393]
[1642031340621,2.53980275,3376.8,3376.6,0.51829489]
[1642031340819,4.06023898,3376.9,3376.6,0.51829489]
[1642031341021,2.54548699,3376.7,3376.6,0.51829489]
[1642031341224,2.53980275,3376.7,3376.6,0.51829489]
[1642031341419,2.54548699,3376.7,3376.6,0.51829489]
[1642031341620,2.54548699,3376.7,3376.6,4.699e-05]
[1642031345370,4.06592322,3376.7,3376.6,4.699e-05]
[1642031345571,4.06592322,3376.7,3376.5,1.46766193]
[1642031345970,0.00511581,3376.6,3376.5,1.46766193]
[1642031346973,2.54491856,3376.6,3376.5,0.43124143]
[1642031350513,2.54491856,3376.6,3376.5,0.426]
[1642031353668,2.54491856,3376.6,3376.5,0.726]
[1642031354730,5.65212194,3376.6,3376.2,0.1184]
[1642031355013,5.65212194,3376.6,3376.0,0.1184]
[1642031355212,0.00454739,3376.5,3375.8,1.59919]
[1642031355620,0.00397896,3376.4,3376.1,1.2263685]
[1642031355817,0.00397896,3376.4,3376.2,0.5183171]
[1642031356022,2.53980275,3376.5,3376.2,0.5183171]
[1642031356023,0.00341054,3376.3,3376.2,0.5183171]
[1642031356218,0.00341054,3376.3,3376.2,0.8183171]
[1642031357021,2.54321329,3376.3,3376.2,0.8183171]
[1642031357822,0.00341054,3376.3,3376.2,0.8183171]
[1642031358467,3.00341054,3376.3,3376.2,0.8183171]
[1642031359070,5.54321329,3376.3,3376.2,0.8183171]
[1642031360574,5.54595917,3376.3,3376.2,0.8183171]
[1642031362520,5.84595917,3376.3,3376.2,0.5183171]
[1642031362730,5.84595917,3376.3,3376.1,1.2263685]
[1642031362926,5.54595917,3376.3,3376.1,1.2263685]
[1642031363127,5.54595917,3376.3,3376.1,1.7446374]
[1642031363128,0.00284212,3376.2,3376.1,1.7446374]
[1642031363328,0.00284212,3376.2,3376.1,1.8630374]
[1642031363527,0.00284212,3376.2,3376.1,2.2890374]
[1642031363730,2.54264487,3376.2,3376.1,2.2890374]
[1642031363929,2.54264487,3376.2,3376.1,2.5890374]
[1642031368774,2.54264487,3376.2,3376.1,2.4706374]
[1642031370226,2.54264487,3376.2,3376.1,2.1706374]
[1642031371025,2.54264487,3376.2,3376.1,0.9442689]
[1642031371227,2.54264487,3376.2,3376.1,0.426]
[1642031372128,3.94454203,3376.2,3376.1,0.426]
[1642031373227,7.13217889,3376.2,3375.7,1.277]
[1642031373481,7.13217889,3376.2,3375.7,0.1184]
[1642031373683,0.00227369,3376.1,3375.7,0.1184]
[1642031373884,0.1184,3376.0,3375.7,0.1184]
[1642031374083,0.12010527,3376.0,3375.7,0.1184]
[1642031374283,0.00113685,3375.9,3375.5,1.13005886]
[1642031374690,0.12067369,3376.1,3375.5,1.13005886]
[1642031374988,0.00170527,3376.0,3375.5,1.13005886]
[1642031375187,2.72732222,3376.0,3375.5,1.13005886]
[1642031375389,0.00113685,3375.9,3375.5,1.13005886]
[1642031376991,2.5409396,3375.9,3375.5,1.13005886]
[1642031377247,2.5409396,3375.9,3375.1,0.426]
[1642031377248,2.80085244,3375.8,3375.1,0.426]
[1642031377628,2.80085244,3375.8,3375.2,0.00284212]
[1642031378430,2.53980275,3375.7,3375.2,0.00284212]
[1642031379035,2.83980275,3375.7,3375.2,0.00284212]
[1642031380133,2.83980275,3375.7,3375.3,0.5184396]
[1642031380535,2.83980275,3375.7,3375.4,0.00170527]
[1642031380536,2.54253665,3375.6,3375.4,0.00170527]
[1642031383983,0.0027339,3375.6,3375.4,0.00170527]
[1642031385427,3.65870613,3375.7,3375.4,0.00170527]
[1642031385428,3.95870613,3375.7,3375.4,0.00170527]
[1642031385626,2.95870613,3375.7,3375.4,0.00170527]
[1642031386034,2.54030613,3375.6,3375.3,0.00227369]
[1642031387031,2.49030613,3375.6,3375.3,0.00227369]
[1642031387432,5.22529329,3375.6,3375.3,0.00227369]
[1642031388030,2.73498716,3375.6,3375.1,0.00341054]
[1642031388468,1.0,3375.5,3375.0,0.00397896]
[1642031388671,2.90895387,3375.4,3375.0,0.00397896]
[1642031388869,3.20895387,3375.4,3375.0,0.00397896]
[1642031389070,1.0,3375.3,3375.0,0.00397896]
[1642031389273,1.0,3375.3,3373.9,3.9864]
[1642031389274,2.89421903,3375.2,3373.9,3.9864]
[1642031389572,2.89421903,3375.2,3373.9,1.59586215]
[1642031389573,1.14945861,3374.2,3373.9,1.59586215]
[1642031389773,2.16265861,3374.2,3373.9,1.47736215]
[1642031389971,2.46265861,3374.2,3374.0,0.00568424]
[1642031390978,2.46265861,3374.2,3373.9,0.00625266]
[1642031392829,2.16265861,3374.2,3373.9,0.00625266]
[1642031393428,4.86717562,3374.2,3373.9,0.00625266]
[1642031393628,4.86067291,3374.2,3373.9,0.00625266]
[1642031393832,5.16067291,3374.2,3373.9,0.00625266]
[1642031394329,2.46265861,3374.2,3373.9,0.00625266]
[1642031394729,2.46265861,3374.2,3373.8,0.5186869]
[1642031394930,2.46265861,3374.2,3373.9,0.00625266]
[1642031395530,2.46265861,3374.2,3373.7,0.00738951]
[1642031395731,2.46265861,3374.2,3373.8,0.5186873]
[1642031396184,2.46265861,3374.2,3373.9,0.00625266]
[1642031397687,2.16265861,3374.2,3373.9,0.00625266]
[1642031398487,5.16265861,3374.2,3373.9,0.00625266]
[1642031398988,5.46265861,3374.2,3373.9,0.00625266]
[1642031401228,5.46265861,3374.2,3373.8,0.47493996]
[1642031401431,5.46265861,3374.2,3373.6,1.1557402]
[1642031401627,0.00113685,3374.1,3373.6,1.1557402]
[1642031401828,0.00113685,3374.1,3373.7,0.00113685]
[1642031402030,0.00113685,3374.1,3373.8,0.5186652]
[1642031403033,0.00113685,3374.1,3373.7,0.00113685]
[1642031404578,2.73971374,3374.1,3373.7,0.00113685]
[1642031404778,0.1184,3374.0,3373.7,0.00113685]
[1642031404978,1.1184,3374.0,3373.7,0.00113685]
[1642031405178,2.78810301,3373.9,3373.3,0.00341054]
[1642031405380,2.78810301,3373.9,3373.2,0.00397897]
[1642031405779,0.1184,3374.0,3373.2,0.00397897]
[1642031405983,0.93842685,3374.1,3373.3,0.1184]
[1642031405984,0.00113685,3374.1,3373.3,0.1184]
[1642031406179,0.30113685,3374.1,3373.3,0.1184]
[1642031406379,0.00113685,3374.1,3373.4,0.00284212]
[1642031407423,0.00113685,3374.1,3373.6,2.08254435]
[1642031408624,0.00113685,3374.1,3373.6,2.82351435]
[1642031409024,0.00113685,3374.1,3373.6,1.259664]
[1642031409224,0.00113685,3374.1,3373.4,2.02918212]
[1642031409424,0.00113685,3374.1,3373.4,1.60318212]
[1642031409623,0.00113685,3374.1,3373.5,0.0022737]
[1642031410728,0.00113685,3374.1,3373.5,0.5209945]
[1642031411176,0.00113685,3374.1,3373.6,0.00170527]
[1642031413777,0.00113685,3374.1,3373.5,0.0022737]
[1642031415120,0.1184,3374.0,3373.5,0.0022737]
[1642031415522,0.1184,3374.0,3373.2,0.426]
[1642031415523,0.1184,3374.0,3373.3,0.00341054]
[1642031416925,1.0167,3374.0,3373.3,0.00341054]
[1642031417126,1.3167,3374.0,3373.3,0.00341054]
[1642031418126,4.07147019,3374.0,3373.3,0.00341054]
[1642031418329,21.77147019,3374.0,3373.3,0.00341054]
[1642031418586,1.0,3373.9,3373.3,0.00341054]
[1642031418783,0.1184,3373.8,3373.1,0.00454739]
[1642031418984,3.23003954,3373.8,3373.1,0.00454739]
[1642031419283,1.0,3373.7,3373.1,0.00454739]
[1642031419487,0.1184,3373.6,3373.1,0.00454739]
[1642031419883,0.1184,3373.7,3373.1,0.00454739]
[1642031420486,0.4184,3373.7,3373.1,0.00454739]
[1642031420689,2.63258952,3373.6,3373.1,0.00454739]
[1642031420890,6.25,3373.4,3372.3,0.38483622]
[1642031421093,2.75098952,3373.3,3372.3,0.38483622]
[1642031421288,1.41953685,3373.3,3372.4,0.00397896]
[1642031421492,4.94870131,3372.5,3372.4,0.00397896]
[1642031421688,7.17470131,3372.5,3372.4,0.00397896]
[1642031422089,24.57470131,3372.5,3372.1,23.3029]
[1642031422325,1.1186,3372.4,3372.1,9.98433685]
[1642031422720,1.11973685,3372.4,3372.1,9.98433685]
[1642031422922,0.74163,3372.3,3372.1,9.98433685]
[1642031423124,0.1186,3372.2,3372.1,9.98433685]
[1642031423323,2.888149,3372.2,3372.1,9.98433685]
[1642031423524,1.1186,3372.2,3372.1,9.98433685]
[1642031423923,3.89602972,3372.2,3372.1,9.98433685]
[1642031424124,18.5186,3372.2,3372.1,9.98433685]
[1642031424326,21.53133312,3372.2,3372.1,5.44992854]
[1642031424522,21.53133312,3372.2,3370.7,1.1365229]
[1642031424523,0.3,3372.0,3370.7,1.1365229]
[1642031424726,0.3,3372.0,3370.7,1.0179229]
[1642031424727,0.01289912,3371.5,3370.7,1.0179229]
[1642031424925,0.1186,3371.4,3370.8,0.00795793]
[1642031425124,1.45497845,3371.1,3370.8,0.00795793]
[1642031425524,1.75497845,3371.1,3370.8,0.00795793]
[1642031425728,1.45497845,3371.1,3370.8,0.00795793]
[1642031426178,1.0,3371.4,3370.8,0.00795793]
[1642031426382,0.3,3371.5,3370.8,0.00795793]
[1642031426579,1.1281,3371.9,3370.8,0.00795793]
[1642031426580,0.1186,3372.0,3370.9,0.1186]
[1642031426782,0.1186,3372.1,3370.9,0.1186]
[1642031426984,0.1186,3372.3,3371.0,0.00682108]
[1642031427180,1.23472674,3372.0,3371.0,0.00682108]
[1642031427380,0.89086331,3371.6,3371.0,0.00682108]
[1642031427783,1.23472674,3372.0,3371.0,0.00682108]
[1642031428184,1.53472674,3372.0,3371.0,0.00682108]
[1642031428383,1.53472674,3372.0,3371.1,1.46700465]
[1642031428584,0.74166,3371.9,3371.1,1.46700465]
[1642031428788,1.53299535,3371.1,3370.9,0.1186]
[1642031428986,1.53299535,3371.1,3371.0,1.25509248]
[1642031429185,1.53299535,3371.1,3371.0,1.26191356]
[1642031430226,1.53299535,3371.1,3371.0,1.38051356]
[1642031431427,1.53299535,3371.1,3371.0,4.21610212]
[1642031432529,1.53299535,3371.1,3371.0,1.68051356]
[1642031432730,1.53299535,3371.1,3371.0,4.23051356]
[1642031433031,1.53299535,3371.1,3371.0,1.68051356]
[1642031433474,1.53299535,3371.1,3371.0,4.1824032]
[1642031434278,1.53299535,3371.1,3371.0,1.68051356]
[1642031434476,1.53299535,3371.1,3371.0,4.10023625]
[1642031437083,1.53299535,3371.1,3371.0,3.80023625]
[1642031437327,1.53299535,3371.1,3371.0,2.80023625]
[1642031437528,1.53299535,3371.1,3371.0,3.10023625]
[1642031438328,1.53299535,3371.1,3371.0,2.80023625]
[1642031438529,1.53299535,3371.1,3371.0,2.84514377]
[1642031438728,1.53299535,3371.1,3371.0,2.54514377]
[1642031439027,1.53299535,3371.1,3371.0,0.42542108]